[Event "58th Akiba Rubinstein B 2022"]
[Site "Polanica-Zdroj"]
[Date "2022.08.15"]
[Round "3.11"]
[White "Twardowski, Hubert"]
[Black "Uliasz, Katarzyna"]
[Result "1/2-1/2"]
[ECO "B76"]
[WhiteElo "1849"]
[BlackElo "1566"]
[Annotator "NA RC"]
[PlyCount "87"]
[EventDate "2022.08.13"]
[EventCountry "POL"]
[SourceTitle "playchess.com"]
[Source "ChessBase"]
[SourceQuality "1"]
[TimeControl "40/5400+30:1800+30"]

1. e4 {[%emt 0:00:03]} c5 {[%emt 0:00:05]} 2. Nf3 {[%emt 0:00:05]} d6 {[%emt 0:00:04]} 3. d4 {[%emt 0:00:18]} cxd4 {[%emt 0:00:07]} 4. Nxd4 {[%emt 0:00:54]} Nf6 {[%emt 0:00:06]} 5. Nc3 {[%emt 0:00:09]} g6 {[%emt 0:00:07]} 6. Be3 {[%emt 0:01:10]} Bg7 {[%emt 0:00:06]} 7. f3 {[%emt 0:00:07]} O-O {[%emt 0:00:05]} 8. Qd2 {[%emt 0:00:10]} Nc6 {[%emt 0:00:06]} 9. O-O-O {[%emt 0:01:31]} d5 {[%emt 0:00:04]} 10. exd5 {[%emt 0:00:16]} Nxd5 {[%emt 0:00:06]} 11. Nxc6 {[%emt 0:02:22]} bxc6 {[%emt 0:00:05]} 12. Bd4 {[%emt 0:02:52]} e5 {[%emt 0:08:14]} 13. Bc5 {[%emt 0:00:50]} Be6 $14 {[%emt 0:01:02]} 14. Ne4 {[%emt 0:07:44]} Qb8 {[%emt 0:17:25]} 15. Bc4 {[%emt 0:30:19]} Rd8 {[%emt 0:07:13]} 16. h4 {[%emt 0:09:20]} h6 {[%emt 0:13:11]} 17. g4 {[%emt 0:06:03]} a5 {[%emt 0:05:54]} 18. a4 {[%emt 0:06:48]} Qc7 {[%emt 0:08:23]} 19. Qf2 {[%emt 0:03:34]} Rab8 {[%emt 0:01:06]} 20. h5 {[%emt 0:01:47]} g5 {[%emt 0:07:03]} 21. Ba3 {[%emt 0:02:12]} Bf8 {[%emt 0:06:52]} 22. Bxf8 {[%emt 0:05:10]} Kxf8 {[%emt 0:00:57]} 23. Qc5+ {[%emt 0:07:28]} Kg7 {[%emt 0:02:42]} 24. Rhe1 {[%emt 0:00:22]} Rb4 {[%emt 0:06:05]} 25. Bb3 {[%emt 0:02:20]} Qb7 {[%emt 0:01:44]} 26. Rd3 {[%emt 0:02:05]} Rb8 {[%emt 0:01:33]} 27. Nd6 {[%emt 0:00:45]} Qa6 {[%emt 0:02:39]} 28. Nc4 {[%emt 0:00:28]} Nf4 {[%emt 0:03:51]} 29. Qxe5+ {[%emt 0:01:09]} Kg8 {[%emt 0:00:10]} 30. Rc3 {[%emt 0:02:59]} Nd5 {[%emt 0:02:41]} 31. Rd3 {[%emt 0:00:20]} Nf4 {[%emt 0:00:05]} 32. Rd4 {[%emt 0:02:33]} c5 {[%emt 0:00:46]} 33. Rd6 {[%emt 0:00:56]} Qa7 {[%emt 0:01:50]} 34. Qe4 {[%emt 0:00:52]} Qc7 {[%emt 0:00:53]} 35. Red1 {[%emt 0:00:58]} Bxc4 {[%emt 0:01:25]} 36. Bxc4 {[%emt 0:00:02]} Rxa4 37. Bxf7+ {[%emt 0:00:51]} Qxf7 {[%emt 0:00:20]} 38. Rd8+ {[%emt 0:00:35]} Rxd8 {[%emt 0:01:07]} 39. Rxd8+ {[%emt 0:00:01]} Kg7 {[%emt 0:00:01]} 40. Qe5+ {[%emt 0:00:00]} Qf6 {[%emt 0:00:00]} 41. Rd7+ {[%emt 0:01:49]} Kg8 {[%emt 0:01:29]} 42. Qxf6 {[%emt 0:00:18]} Ne2+ {[%emt 0:00:29]} 43. Kd2 {[%emt 0:00:14]} Rf4 {[%emt 0:00:13]} 44. Qg7# {[%emt 0:00:18]} 1/2-1/2

[Event "58th Akiba Rubinstein B 2022"]
[Site "Polanica-Zdroj"]
[Date "2022.08.15"]
[Round "3.12"]
[White "Graff, Slawomir"]
[Black "Bartlomowicz, Jakub"]
[Result "1/2-1/2"]
[ECO "D10"]
[WhiteElo "1782"]
[BlackElo "1922"]
[Annotator "NA RC"]
[PlyCount "145"]
[EventDate "2022.08.13"]
[EventCountry "POL"]
[SourceTitle "playchess.com"]
[Source "ChessBase"]
[SourceQuality "1"]
[TimeControl "40/5400+30:1800+30"]

1. d4 {[%emt 0:03:40]} d5 {[%emt 0:00:06]} 2. c4 {[%emt 0:00:05]} c6 {[%emt 0:00:06]} 3. cxd5 {[%emt 0:00:06]} cxd5 {[%emt 0:00:07]} 4. Nf3 {[%emt 0:00:05]} Nf6 {[%emt 0:00:49]} 5. Nc3 {[%emt 0:00:08]} Nc6 {[%emt 0:01:21]} 6. Bf4 {[%emt 0:00:09]} a6 {[%emt 0:02:19]} 7. e3 {[%emt 0:01:06]} Bg4 {[%emt 0:03:20]} 8. Be2 {[%emt 0:00:41]} e6 {[%emt 0:00:14] 8...Bxf3 is more fashionable.} 9. a3 {[%emt 0:00:34]} Bd6 {[%emt 0:01:16]} 10. Bxd6 {[%emt 0:00:11]} Qxd6 {[%emt 0:00:02]} 11. Nd2 {[%emt 0:02:30]} Bxe2 {[%emt 0:01:02] [#]} 12. Nxe2 $146 {[%emt 0:00:08]} ({Predecessor:} 12. Qxe2 O-O 13. Nb3 Nd7 14. O-O b5 15. Na2 Nb6 16. Nac1 Nc4 17. Nd3 a5 18. a4 bxa4 19. Rxa4 {0-1 (75) Zorko,J (2460)-Solak,D (2613) Ljubljana 2012}) 12... O-O {[%emt 0:00:10]} 13. b4 {[%emt 0:00:37]} Rfc8 {[%emt 0:03:35]} 14. h3 {[%emt 0:00:33]} Na7 {[%emt 0:06:54]} 15. O-O {[%emt 0:09:07]} Qe7 {[%emt 0:02:32]} 16. Qb3 {[%emt 0:02:39]} b6 {[%emt 0:04:28]} 17. Rfc1 {[%emt 0:00:58]} Nb5 {[%emt 0:00:23]} 18. Rxc8+ {[%emt 0:01:32]} Rxc8 {[%emt 0:00:06]} 19. Qd3 {[%emt 0:03:27]} Qb7 {[%emt 0:00:45]} 20. Rc1 {[%emt 0:00:42]} h6 {[%emt 0:00:49]} 21. Rxc8+ {[%emt 0:03:43]} Qxc8 {[%emt 0:00:01]} 22. f3 $11 {[%emt 0:04:12]} Nd6 {[%emt 0:11:58]} 23. e4 {[%emt 0:09:28]} Nc4 {[%emt 0:00:06]} 24. e5 {[%emt 0:01:20]} Nd7 {[%emt 0:00:42]} 25. a4 {[%emt 0:08:16]} b5 {[%emt 0:02:20]} 26. Nxc4 {[%emt 0:17:18]} dxc4 {[%emt 0:01:23]} 27. Qa3 {[%emt 0:03:50]} bxa4 {[%emt 0:03:25]} 28. Qxa4 {[%emt 0:07:52]} c3 {[%emt 0:00:01]} 29. Nxc3 {[%emt 0:08:08]} Qxc3 {[%emt 0:00:01]} 30. Qxd7 {[%emt 0:00:23]} Qxb4 {[%emt 0:00:01]} 31. Qc8+ {[%emt 0:01:22]} Kh7 {[%emt 0:00:05]} 32. Qxa6 {[%emt 0:00:12]} Qxd4+ {[%emt 0:00:01]} 33. Kh1 {[%emt 0:00:25]} Qxe5 {[%emt 0:00:03]} 34. Qd3+ {[%emt 0:01:07]} g6 {[%emt 0:00:02]} 35. Qd7 {[%emt 0:00:26]} Kg7 {[%emt 0:01:05]} 36. Qd3 {[%emt 0:00:23]} g5 {[%emt 0:01:39]} 37. Qc4 {[%emt 0:01:02]} h5 {[%emt 0:00:26]} 38. Qd3 {[%emt 0:05:09]} Qc5 {[%emt 0:00:58]} 39. Qb1 {[%emt 0:01:07]} Qc3 {[%emt 0:00:50]} 40. Qb5 {[%emt 0:00:00]} Kf6 {[%emt 0:00:00]} 41. Qe8 {[%emt 0:01:45]} Qc1+ {[%emt 0:04:07]} 42. Kh2 {[%emt 0:00:07]} Qf4+ {[%emt 0:00:01]} 43. Kh1 {[%emt 0:00:14]} Kg7 {[%emt 0:00:21]} 44. Qb5 {[%emt 0:01:09]} Qf6 {[%emt 0:01:12]} 45. Qc4 {[%emt 0:01:21]} Qf4 {[%emt 0:01:37]} 46. Qc3+ {[%emt 0:01:29]} e5 {[%emt 0:00:06]} 47. Qb2 {[%emt 0:02:31]} g4 {[%emt 0:04:16]} 48. hxg4 {[%emt 0:04:55]} hxg4 {[%emt 0:00:02]} 49. fxg4 {[%emt 0:01:09]} Kf6 {[%emt 0:00:01]} 50. Qb8 {[%emt 0:02:15]} Qxg4 {[%emt 0:00:49]} 51. Qd8+ {[%emt 0:02:12]} Kg7 {[%emt 0:00:36]} 52. Qa5 {[%emt 0:02:59]} Qf4 {[%emt 0:00:56]} 53. Qc7 {[%emt 0:01:36]} Qf6 {[%emt 0:01:10]} 54. Qc8 {[%emt 0:02:52]} e4 {[%emt 0:00:17]} 55. Kg1 {[%emt 0:02:23]} Qd4+ {[%emt 0:00:19]} 56. Kf1 {[%emt 0:04:09]} e3 {[%emt 0:00:17]} 57. Qc2 {[%emt 0:04:01]} Kf6 {[%emt 0:00:14]} 58. Ke2 {[%emt 0:01:48]} Ke5 {[%emt 0:00:04]} 59. Qc7+ {[%emt 0:01:07]} Kf6 {[%emt 0:00:57]} 60. Qc2 {[%emt 0:01:51]} Kg5 {[%emt 0:00:14]} 61. Qa2 {[%emt 0:02:44]} Qf4 {[%emt 0:01:24]} 62. Qd5+ {[%emt 0:00:29]} f5 {[%emt 0:00:08]} 63. Qg8+ {[%emt 0:00:53]} Kh4 {[%emt 0:00:53]} 64. Qh7+ {[%emt 0:00:15]} Kg4 {[%emt 0:00:07]} 65. Qg7+ {[%emt 0:00:20]} Qg5 {[%emt 0:00:09]} 66. Qxg5+ {[%emt 0:01:04]} Kxg5 {[%emt 0:00:04]} 67. Kxe3 {[%emt 0:00:05]} Kg4 {[%emt 0:00:11]} 68. Ke2 {[%emt 0:00:34]} Kg3 {[%emt 0:00:07]} 69. Ke3 {[%emt 0:00:13]} f4+ {[%emt 0:00:17]} 70. Ke4 {[%emt 0:00:06]} Kg4 {[%emt 0:00:05]} 71. Ke5 {[%emt 0:00:23]} Kg3 {[%emt 0:00:08]} 72. Ke4 {[%emt 0:00:06]} Kxg2 {[%emt 0:00:09]} 73. Kxf4 {[%emt 0:00:06]} 1/2-1/2

[Event "58th Akiba Rubinstein B 2022"]
[Site "Polanica-Zdroj"]
[Date "2022.08.15"]
[Round "3.14"]
[White "Nowak, Roksana"]
[Black "Jedrzejko, Martyna"]
[Result "1/2-1/2"]
[ECO "C00"]
[WhiteElo "1779"]
[BlackElo "1533"]
[Annotator "NA RC"]
[PlyCount "85"]
[EventDate "2022.08.13"]
[EventCountry "POL"]
[SourceTitle "playchess.com"]
[Source "ChessBase"]
[SourceQuality "1"]
[TimeControl "40/5400+30:1800+30"]

1. e4 {[%emt 0:00:03]} e6 {[%emt 0:00:08]} 2. d3 {[%emt 0:00:20]} d5 {[%emt 0:00:16]} 3. Nd2 {[%emt 0:00:07]} c5 {[%emt 0:00:47]} 4. g3 {[%emt 0:00:41]} Nc6 {[%emt 0:01:11]} 5. Bg2 {[%emt 0:00:44]} Nf6 {[%emt 0:01:03]} 6. Ne2 {[%emt 0:02:28]} Be7 {[%emt 0:00:48]} 7. O-O {[%emt 0:00:35]} O-O {[%emt 0:00:47]} 8. Nf4 {[%emt 0:07:12]} Qd7 {[%emt 0:08:03]} 9. Re1 {[%emt 0:07:08]} b6 {[%emt 0:02:52]} 10. exd5 {[%emt 0:10:48]} Nxd5 {[%emt 0:02:31]} 11. Nxd5 {[%emt 0:02:40]} exd5 {[%emt 0:00:10]} 12. c4 {[%emt 0:03:48]} Nb4 {[%emt 0:04:03]} 13. Nf1 {[%emt 0:07:53]} Bb7 {[%emt 0:02:39]} 14. a3 {[%emt 0:00:33]} Na6 {[%emt 0:00:46]} 15. Qf3 {[%emt 0:07:48]} Rab8 {[%emt 0:02:07]} 16. Bf4 {[%emt 0:02:01]} Bd6 {[%emt 0:04:10]} 17. Bxd6 {[%emt 0:01:07]} Qxd6 {[%emt 0:00:10]} 18. cxd5 {[%emt 0:00:13]} Nc7 {[%emt 0:03:31]} 19. Ne3 {[%emt 0:00:26]} g6 {[%emt 0:01:22]} 20. Qg4 {[%emt 0:02:43]} Kh8 {[%emt 0:05:22]} 21. Nc4 {[%emt 0:01:10]} Qd8 {[%emt 0:02:08]} 22. d6 {[%emt 0:02:18]} Ne8 {[%emt 0:02:34]} 23. d7 {[%emt 0:02:57]} Nf6 {[%emt 0:00:48]} 24. Qf4 {[%emt 0:00:21]} Bxg2 {[%emt 0:02:41]} 25. Kxg2 {[%emt 0:02:59]} Nxd7 {[%emt 0:00:39]} 26. Nd6 {[%emt 0:01:41]} Kg8 {[%emt 0:03:54]} 27. Ne4 {[%emt 0:03:03]} Rc8 {[%emt 0:05:58]} 28. g4 {[%emt 0:04:00]} Qc7 {[%emt 0:05:53]} 29. Qh6 {[%emt 0:03:28]} f5 {[%emt 0:09:58]} 30. Ng5 {[%emt 0:06:11]} Nf6 {[%emt 0:00:10]} 31. Ne6 {[%emt 0:00:54]} Qb7+ {[%emt 0:00:29]} 32. Kg1 {[%emt 0:00:22]} Nxg4 {[%emt 0:00:30]} 33. Qh4 {[%emt 0:00:33]} Rfe8 {[%emt 0:04:05]} 34. h3 {[%emt 0:00:54]} Qc6 {[%emt 0:00:57]} 35. hxg4 {[%emt 0:05:00]} Rxe6 {[%emt 0:00:11]} 36. gxf5 {[%emt 0:00:22]} gxf5 {[%emt 0:02:32]} 37. Re3 {[%emt 0:02:57]} Rh6 {[%emt 0:03:49]} 38. Qc4+ {[%emt 0:00:05]} Kf8 {[%emt 0:00:37]} 39. Kf1 {[%emt 0:05:19]} Rh1+ {[%emt 0:00:22]} 40. Ke2 {[%emt 0:00:00]} Rxa1 {[%emt 0:00:00]} 41. Qc3 {[%emt 0:01:50]} Kf7 {[%emt 0:10:49]} 42. Qc4+ {[%emt 0:00:28]} Kf8 {[%emt 0:18:26]} 43. Qc3 {[%emt 0:00:05]} 1/2-1/2

[Event "58th Akiba Rubinstein B 2022"]
[Site "Polanica-Zdroj"]
[Date "2022.08.15"]
[Round "3.15"]
[White "Hury, Tymoteusz"]
[Black "Mocko, Maciej"]
[Result "1-0"]
[ECO "B23"]
[WhiteElo "1679"]
[BlackElo "1525"]
[Annotator "NA RC"]
[PlyCount "63"]
[EventDate "2022.08.13"]
[EventCountry "POL"]
[SourceTitle "playchess.com"]
[Source "ChessBase"]
[SourceQuality "1"]
[TimeControl "40/5400+30:1800+30"]

1. e4 {[%emt 0:00:01]} c5 {[%emt 0:00:14]} 2. Nc3 {[%emt 0:00:22]} Nc6 {[%emt 0:00:14]} 3. f4 {[%emt 0:00:08]} g6 {[%emt 0:00:13]} 4. Nf3 {[%emt 0:00:21]} Bg7 {[%emt 0:00:05]} 5. Bb5 {[%emt 0:01:24]} e6 {[%emt 0:00:16]} 6. Bxc6 {[%emt 0:01:38]} bxc6 {[%emt 0:00:24]} 7. O-O {[%emt 0:05:48]} d5 {[%emt 0:01:04]} 8. e5 {[%emt 0:00:53]} Ne7 {[%emt 0:00:38]} 9. d3 {[%emt 0:03:10]} O-O {[%emt 0:02:11]} 10. b3 {[%emt 0:04:57]} Nf5 {[%emt 0:09:09]} 11. Na4 {[%emt 0:08:34]} c4 {[%emt 0:05:17]} 12. dxc4 {[%emt 0:01:50]} dxc4 {[%emt 0:00:39]} 13. Qe2 {[%emt 0:01:43]} cxb3 {[%emt 0:01:21]} 14. axb3 {[%emt 0:04:00]} Qa5 {[%emt 0:04:31]} 15. Bd2 {[%emt 0:03:16]} Qb5 {[%emt 0:13:24]} 16. Qf2 {[%emt 0:10:20]} Rd8 {[%emt 0:17:30]} 17. Nc3 {[%emt 0:06:27]} Qb8 {[%emt 0:01:50]} 18. Ne4 {[%emt 0:02:43]} h5 {[%emt 0:00:52]} 19. Ra5 {[%emt 0:07:14]} Rd5 {[%emt 0:04:31]} 20. Rfa1 {[%emt 0:04:42]} a6 {[%emt 0:02:33]} 21. R5a4 {[%emt 0:02:35]} Kh8 {[%emt 0:09:34]} 22. Bb4 {[%emt 0:01:58]} Bb7 {[%emt 0:11:49]} 23. Nfg5 {[%emt 0:07:31]} Kg8 {[%emt 0:00:47]} 24. Ba5 {[%emt 0:02:27]} Bh6 {[%emt 0:04:06]} 25. Nf6+ {[%emt 0:01:30]} Kg7 {[%emt 0:00:00]} 26. Nge4 {[%emt 0:02:16]} Rxe5 {[%emt 0:00:38]} 27. Bc3 {[%emt 0:02:27]} Rxe4 {[%emt 0:04:21]} 28. Nd7+ {[%emt 0:02:28]} Kh7 {[%emt 0:00:45]} 29. Nxb8 {[%emt 0:00:12]} Rxa4 {[%emt 0:00:25]} 30. Rxa4 {[%emt 0:00:10]} Rxb8 {[%emt 0:00:04]} 31. Qa7 {[%emt 0:00:23]} Bxf4 {[%emt 0:01:51]} 32. Rxf4 1-0

[Event "58th Akiba Rubinstein B 2022"]
[Site "Polanica-Zdroj"]
[Date "2022.08.16"]
[Round "4.1"]
[White "Chmiel, Marcin"]
[Black "Zerebiec, Maurycy"]
[Result "0-1"]
[ECO "A36"]
[WhiteElo "2192"]
[BlackElo "1915"]
[Annotator "RC"]
[PlyCount "104"]
[EventDate "2022.08.13"]
[EventCountry "POL"]
[SourceTitle "playchess.com"]
[Source "ChessBase"]
[SourceQuality "1"]
[TimeControl "40/5400+30:1800+30"]

1. c4 {[%emt 0:00:29]} c5 {[%emt 0:00:29]} 2. g3 {[%emt 0:00:22]} Nc6 {[%emt 0:00:02]} 3. Bg2 {[%emt 0:00:12]} g6 {[%emt 0:00:04]} 4. Nc3 {[%emt 0:00:20]} Bg7 {[%emt 0:00:02]} 5. a3 {[%emt 0:00:33]} d6 {[%emt 0:00:19]} 6. Rb1 {[%emt 0:00:24]} a5 {[%emt 0:00:09]} 7. d3 {[%emt 0:04:01]} e5 {[%emt 0:00:12]} 8. e3 {[%emt 0:00:16]} Nge7 {[%emt 0:00:08]} 9. Nge2 {[%emt 0:00:16]} Rb8 {[%emt 0:00:20]} 10. Bd2 {[%emt 0:01:27]} O-O {[%emt 0:00:18]} 11. O-O {[%emt 0:00:08]} Be6 {[%emt 0:00:04]} 12. Nd5 {[%emt 0:01:01]} b5 {[%emt 0:00:10]} 13. cxb5 {[%emt 0:18:16]} Bxd5 {[%emt 0:08:07]} 14. Bxd5 {[%emt 0:01:17]} Nxd5 {[%emt 0:00:03]} 15. bxc6 {[%emt 0:00:08]} Qb6 {[%emt 0:01:04]} 16. Qa4 {[%emt 0:02:52]} Ra8 {[%emt 0:02:09]} 17. Nc3 {[%emt 0:06:59]} Ne7 {[%emt 0:01:37]} 18. e4 {[%emt 0:02:56]} Qxc6 {[%emt 0:05:52]} 19. Qc4 {[%emt 0:01:22]} Qa6 {[%emt 0:05:06]} 20. Nb5 {[%emt 0:04:42]} Rfb8 {[%emt 0:09:26]} 21. a4 {[%emt 0:03:21]} Qc6 {[%emt 0:00:35]} 22. Rbc1 {[%emt 0:04:12]} Rc8 {[%emt 0:00:31]} 23. Be3 {[%emt 0:02:41]} Qd7 {[%emt 0:04:01]} 24. b3 {[%emt 0:08:16]} Rc6 {[%emt 0:08:56]} 25. Nc3 {[%emt 0:08:12]} Rb6 {[%emt 0:02:27]} 26. Nb5 {[%emt 0:01:32]} Rc6 {[%emt 0:00:20]} 27. Bg5 {[%emt 0:05:17]} d5 {[%emt 0:03:51]} 28. Qc2 {[%emt 0:01:11]} f6 {[%emt 0:00:14]} 29. Be3 {[%emt 0:00:38]} Rac8 {[%emt 0:02:27]} 30. Qd2 {[%emt 0:02:58]} d4 {[%emt 0:05:26]} 31. Bh6 {[%emt 0:00:07]} Bxh6 {[%emt 0:00:07]} 32. Qxh6 {[%emt 0:00:03]} f5 {[%emt 0:00:53]} 33. Rce1 {[%emt 0:06:14]} Rf6 {[%emt 0:04:56]} 34. f4 {[%emt 0:02:59]} fxe4 {[%emt 0:00:12]} 35. Rxe4 {[%emt 0:02:01]} exf4 {[%emt 0:00:38]} 36. Rexf4 {[%emt 0:01:11]} Rxf4 {[%emt 0:00:34]} 37. Qxf4 {[%emt 0:00:28]} Nd5 {[%emt 0:01:16]} 38. Qf3 {[%emt 0:03:25]} Qe6 {[%emt 0:03:07]} 39. Kh1 {[%emt 0:02:01]} Ne3 {[%emt 0:01:06]} 40. Nc7 {[%emt 0:00:00]} Qxb3 {[%emt 0:00:00]} 41. Qe4 {[%emt 0:12:18]} Nxf1 {[%emt 0:17:59]} 42. Nd5 {[%emt 0:00:37]} Rf8 {[%emt 0:00:51]} 43. Qe6+ {[%emt 0:00:30]} Kg7 {[%emt 0:00:03]} 44. Qe7+ {[%emt 0:04:30]} Rf7 {[%emt 0:00:35]} 45. Qe5+ {[%emt 0:00:07]} Kh6 {[%emt 0:00:08]} 46. Nf6 {[%emt 0:01:25]} Rxf6 {[%emt 0:05:21]} 47. Qxf6 {[%emt 0:00:07]} Qd5+ {[%emt 0:00:03]} 48. Kg1 {[%emt 0:00:11]} Ne3 {[%emt 0:04:14]} 49. Qf8+ {[%emt 0:00:12]} Kh5 {[%emt 0:00:03]} 50. g4+ {[%emt 0:00:13]} Kxg4 {[%emt 0:00:57]} 51. h3+ {[%emt 0:00:06]} Kh5 {[%emt 0:00:05]} 52. Qf2 {[%emt 0:00:47]} Qg2+ {[%emt 0:00:13]} 0-1

[Event "58th Akiba Rubinstein B 2022"]
[Site "Polanica-Zdroj"]
[Date "2022.08.16"]
[Round "4.2"]
[White "Kossowski, Pawel"]
[Black "Halhoul, Adam"]
[Result "0-1"]
[ECO "B33"]
[WhiteElo "1737"]
[BlackElo "1672"]
[Annotator "NA RC"]
[PlyCount "76"]
[EventDate "2022.08.13"]
[EventCountry "POL"]
[SourceTitle "playchess.com"]
[Source "ChessBase"]
[SourceQuality "1"]
[TimeControl "40/5400+30:1800+30"]

1. e4 {[%emt 0:00:03]} c5 {[%emt 0:00:30]} 2. Nf3 {[%emt 0:00:15]} Nc6 {[%emt 0:00:10]} 3. d4 {[%emt 0:00:16]} cxd4 {[%emt 0:00:06]} 4. Nxd4 {[%emt 0:00:09]} Nf6 {[%emt 0:00:22]} 5. Nc3 {[%emt 0:01:04]} e5 {[%emt 0:00:44]} 6. Ndb5 {[%emt 0:00:49]} d6 {[%emt 0:00:13]} 7. Bg5 {[%emt 0:01:10]} a6 {[%emt 0:00:13]} 8. Na3 {[%emt 0:00:57]} b5 {[%emt 0:00:09]} 9. Bxf6 {[%emt 0:01:41]} gxf6 {[%emt 0:00:02]} 10. Nd5 {[%emt 0:00:19]} Bg7 {[%emt 0:00:12]} 11. g3 {[%emt 0:02:00]} O-O {[%emt 0:14:35]} 12. Bg2 {[%emt 0:03:16]} Ne7 {[%emt 0:00:45]} 13. Ne3 {[%emt 0:05:22]} Ra7 {[%emt 0:06:25]} 14. Qd3 {[%emt 0:08:30]} f5 {[%emt 0:09:37]} 15. exf5 {[%emt 0:21:42]} e4 {[%emt 0:08:23]} 16. Bxe4 {[%emt 0:02:12]} Bxb2 {[%emt 0:01:04]} 17. O-O {[%emt 0:01:41]} Bxa1 {[%emt 0:01:19]} 18. Rxa1 {[%emt 0:01:27]} d5 {[%emt 0:03:06]} 19. Qd4 {[%emt 0:10:24]} dxe4 {[%emt 0:08:39]} 20. Qxa7 {[%emt 0:02:30]} Qd6 {[%emt 0:00:49]} 21. Rd1 {[%emt 0:12:42]} Qxa3 {[%emt 0:08:01]} 22. f6 {[%emt 0:00:32]} Ng6 {[%emt 0:01:04]} 23. Qd4 {[%emt 0:12:11]} Re8 {[%emt 0:06:44]} 24. h4 {[%emt 0:03:07]} Qf8 {[%emt 0:15:02]} 25. Nd5 {[%emt 0:04:10]} Bg4 {[%emt 0:04:02]} 26. Rd2 {[%emt 0:02:30]} h5 {[%emt 0:00:43]} 27. Qe3 {[%emt 0:01:16]} Kh7 {[%emt 0:02:07]} 28. Nc7 {[%emt 0:01:35]} Rc8 {[%emt 0:02:51]} 29. Nxa6 {[%emt 0:00:10]} Bf3 {[%emt 0:01:24]} 30. Qb3 {[%emt 0:00:26]} Qe8 {[%emt 0:01:15]} 31. Rd5 {[%emt 0:00:45]} e3 {[%emt 0:01:07]} 32. fxe3 {[%emt 0:00:45]} Bxd5 {[%emt 0:00:20]} 33. Qxd5 {[%emt 0:00:14]} Qxe3+ {[%emt 0:00:11]} 34. Kf1 {[%emt 0:00:42]} Qc1+ {[%emt 0:01:27]} 35. Ke2 {[%emt 0:00:19]} Qxc2+ {[%emt 0:00:09]} 36. Ke3 {[%emt 0:00:19]} Re8+ {[%emt 0:00:51]} 37. Kd4 {[%emt 0:00:11]} Rd8 {[%emt 0:00:24]} 38. Qxd8 {[%emt 0:00:21]} Qd2+ {[%emt 0:00:05]} 0-1

[Event "58th Akiba Rubinstein B 2022"]
[Site "Polanica-Zdroj"]
[Date "2022.08.16"]
[Round "4.3"]
[White "Jaworski, Tymon"]
[Black "Rzenca, Jerzy"]
[Result "1-0"]
[ECO "B19"]
[WhiteElo "1701"]
[BlackElo "1668"]
[Annotator "NA RC"]
[PlyCount "109"]
[EventDate "2022.08.13"]
[EventCountry "POL"]
[SourceTitle "playchess.com"]
[Source "ChessBase"]
[SourceQuality "1"]
[TimeControl "40/5400+30:1800+30"]

1. e4 {[%emt 0:00:02]} c6 {[%emt 0:00:10]} 2. d4 {[%emt 0:00:07]} d5 {[%emt 0:00:03]} 3. Nd2 {[%emt 0:00:17]} dxe4 {[%emt 0:01:41]} 4. Nxe4 {[%emt 0:00:09]} Bf5 {[%emt 0:00:04]} 5. Ng3 {[%emt 0:00:10]} Bg6 {[%emt 0:00:04]} 6. Nf3 {[%emt 0:00:14]} Nd7 {[%emt 0:00:20]} 7. h4 {[%emt 0:00:10]} h6 {[%emt 0:00:04]} 8. h5 {[%emt 0:00:13]} Bh7 {[%emt 0:00:03]} 9. Bd3 {[%emt 0:00:12]} Bxd3 {[%emt 0:00:06]} 10. Qxd3 {[%emt 0:00:08]} e6 {[%emt 0:00:00]} 11. Bd2 {[%emt 0:00:53]} Ngf6 {[%emt 0:00:08]} 12. O-O-O {[%emt 0:01:31]} Be7 {[%emt 0:00:03]} 13. Kb1 {[%emt 0:00:17]} Qb6 {[%emt 0:00:04]} 14. c4 {[%emt 0:02:00]} Rd8 {[%emt 0:00:35]} 15. Bc3 {[%emt 0:02:19]} O-O {[%emt 0:05:36]} 16. Nh4 {[%emt 0:14:38]} Qc7 {[%emt 0:10:00]} 17. Ne2 {[%emt 0:08:52]} Nc5 {[%emt 0:14:02]} 18. Qf3 {[%emt 0:05:24]} Nce4 {[%emt 0:01:19]} 19. g4 {[%emt 0:02:15]} Nxc3+ {[%emt 0:02:31]} 20. Nxc3 {[%emt 0:00:19]} Nh7 {[%emt 0:00:11]} 21. Qe3 {[%emt 0:01:18]} Bg5 {[%emt 0:02:11]} 22. Qe2 {[%emt 0:04:12]} Bf6 {[%emt 0:07:34]} 23. Nf3 {[%emt 0:01:06]} Ng5 {[%emt 0:05:03]} 24. Ne4 {[%emt 0:05:20]} Qf4 {[%emt 0:03:27]} 25. Nxf6+ {[%emt 0:02:52]} gxf6 {[%emt 0:05:01]} 26. Nxg5 {[%emt 0:01:50]} fxg5 {[%emt 0:00:04]} 27. f3 {[%emt 0:01:04]} Rd7 {[%emt 0:23:25]} 28. Qe4 {[%emt 0:09:16]} Qxe4+ {[%emt 0:00:59]} 29. fxe4 {[%emt 0:00:07]} Rfd8 {[%emt 0:00:02]} 30. d5 {[%emt 0:00:23]} cxd5 {[%emt 0:00:27]} 31. exd5 {[%emt 0:01:21]} exd5 {[%emt 0:00:06]} 32. c5 {[%emt 0:00:07]} d4 {[%emt 0:06:37]} 33. Rd3 {[%emt 0:01:45]} Re7 {[%emt 0:01:54]} 34. b4 {[%emt 0:03:36]} Re2 {[%emt 0:11:20]} 35. Rhd1 {[%emt 0:04:52]} Re4 {[%emt 0:00:02]} 36. Rg1 {[%emt 0:00:08]} Kg7 {[%emt 0:00:16]} 37. Kc2 {[%emt 0:01:28]} b6 {[%emt 0:01:19]} 38. Kb3 {[%emt 0:00:53]} bxc5 {[%emt 0:00:52]} 39. bxc5 {[%emt 0:00:04]} Re5 {[%emt 0:01:12]} 40. Rc1 {[%emt 0:00:00]} Rb8+ {[%emt 0:00:00]} 41. Ka4 {[%emt 0:01:11]} Re6 {[%emt 0:28:47]} 42. Ka5 {[%emt 0:00:51]} Kf8 {[%emt 0:02:22]} 43. Rxd4 {[%emt 0:01:19]} Rc6 {[%emt 0:00:34]} 44. Rd6 {[%emt 0:01:17]} Rxd6 {[%emt 0:00:37]} 45. cxd6 {[%emt 0:00:02]} Ke8 {[%emt 0:00:20]} 46. Rf1 {[%emt 0:04:21]} Rb2 {[%emt 0:00:03]} 47. a4 {[%emt 0:00:27]} Rg2 {[%emt 0:00:04]} 48. Rf6 {[%emt 0:01:23]} Rxg4 {[%emt 0:00:04]} 49. Rxh6 {[%emt 0:01:26]} Rh4 {[%emt 0:01:49]} 50. Kb5 {[%emt 0:03:43]} Kd7 {[%emt 0:00:40]} 51. Rf6 {[%emt 0:04:08]} a6+ {[%emt 0:00:47]} 52. Kxa6 {[%emt 0:00:46]} Rxa4+ {[%emt 0:00:04]} 53. Kb5 {[%emt 0:00:33]} Rf4 {[%emt 0:00:46]} 54. Rxf4 {[%emt 0:00:33]} gxf4 {[%emt 0:00:01]} 55. Kc4 {[%emt 0:00:14]} 1-0